fUST/lending_fUST_20241026
["ID","MTS","AMOUNT","RATE_DAILY","PERIOD"]
[340821705,1729878645843,-3000.0,0.0002121,2]
[340821707,1729878645853,-13431.1883473,0.0002121,3]
[340821709,1729878645864,-4291.63119222,0.00021217,3]
[340821711,1729878645874,-151.0,0.0002122,2]
[340821713,1729878645883,-151.0,0.0002122,2]
[340821715,1729878645893,-3000.0,0.0002122,2]
[340821717,1729878645903,-3000.0,0.0002123,2]
[340821719,1729878645913,-3000.0,0.0002124,2]
[340821721,1729878645923,-465.922673,0.0002124,2]
[340821723,1729878645933,-465.922673,0.0002124,2]
[340821725,1729878645943,-151.0,0.0002124,2]
[340821728,1729878645953,-151.0,0.0002124,2]
[340821730,1729878645963,-505.069313,0.0002124,2]
[340821732,1729878645974,-505.069313,0.0002124,2]
[340821734,1729878645984,-3000.0,0.0002125,2]
[340821736,1729878645993,-151.0,0.0002125,2]
[340821738,1729878646002,-151.0,0.0002125,2]
[340821740,1729878646011,-235.597057,0.0002125,2]
[340821742,1729878646023,-235.597057,0.0002125,2]
[340821744,1729878646032,-1775.01026,0.0002125,2]
[340821746,1729878646042,-1775.01026,0.0002125,2]
[340821748,1729878646051,-3000.0,0.0002126,2]
[340821750,1729878646060,-151.0,0.0002126,2]
[340821752,1729878646069,-151.0,0.0002126,2]
[340821754,1729878646079,-454.017547,0.0002126,2]
[340821756,1729878646088,-454.017547,0.0002126,2]
[340821758,1729878646097,-151.0,0.0002126,2]
[340821760,1729878646123,-225.347969,0.0002126,2]
[340821762,1729878646133,-151.0,0.0002126,2]
[340821764,1729878646143,-151.0,0.0002127,2]
[340821766,1729878646152,-151.0,0.0002127,2]
[340821768,1729878646162,-151.0,0.0002127,2]
[340821770,1729878646171,-151.0,0.0002127,2]
[340821772,1729878646180,-3000.0,0.0002127,2]
[340821774,1729878646190,-465.922673,0.0002127,2]
[340821776,1729878646199,-465.922668,0.0002127,2]
[340821777,1729878646210,-151.0,0.0002127,2]
[340821778,1729878646219,-151.0,0.0002127,2]
[340821779,1729878646229,-505.069313,0.0002127,2]
[340821780,1729878646239,-505.069311,0.0002127,2]
[340821781,1729878646249,-151.0,0.0002128,2]
[340821782,1729878646259,-151.0,0.0002128,2]
[340821783,1729878646269,-151.0,0.0002128,2]
[340821784,1729878646280,-3000.0,0.0002128,2]
[340821786,1729878646292,-3000.0,0.0002129,2]
[340821788,1729878646302,-151.0,0.0002129,2]
[340821790,1729878646312,-151.0,0.0002129,2]
[340821792,1729878646322,-235.597057,0.0002129,2]
[340821794,1729878646332,-235.59705,0.0002129,2]
[340821796,1729878646343,-1775.01026,0.0002129,2]
[340821798,1729878646352,-1775.010261,0.0002129,2]
[340821800,1729878646362,-151.0,0.000213,2]
[340821802,1729878646372,-151.0,0.000213,2]
[340821804,1729878646382,-151.0,0.000213,2]
[340821806,1729878646392,-651.816766,0.000213,2]
[340821808,1729878646402,-651.816766,0.000213,2]
[340821810,1729878646412,-225.614,0.000213,2]
[340821812,1729878646422,-225.614,0.000213,2]
[340821815,1729878646432,-3000.0,0.000213,2]
[340821817,1729878646442,-151.0,0.000213,2]
[340821819,1729878646452,-151.0,0.000213,2]
[340821821,1729878646461,-153.584192,0.000213,2]
[340821823,1729878646471,-153.584192,0.000213,2]
[340821825,1729878646480,-3000.0,0.0002131,2]
[340821827,1729878646489,-151.0,0.0002131,2]
[340821829,1729878646498,-151.0,0.0002131,2]
[340821831,1729878646507,-454.017547,0.0002131,2]
[340821833,1729878646517,-454.017547,0.0002131,2]
[340821835,1729878646526,-151.0,0.0002131,2]
[340821837,1729878646535,-151.0,0.0002131,2]
[340821839,1729878646545,-151.0,0.0002132,2]
[340821841,1729878646554,-3000.0,0.0002132,2]
[340821843,1729878646563,-151.0,0.0002133,2]
[340821845,1729878646572,-151.0,0.0002133,2]
[340821847,1729878646581,-151.0,0.0002133,2]
[340821849,1729878646590,-3000.0,0.0002133,2]
[340821851,1729878646600,-151.0,0.0002134,2]
[340821853,1729878646619,-151.0,0.0002134,2]
[340821855,1729878646634,-3000.0,0.0002134,2]
[340821857,1729878646644,-1000.0,0.00021347,2]
[340821859,1729878646654,-3000.0,0.0002135,2]
[340821861,1729878646663,-151.0,0.0002136,2]
[340821863,1729878646673,-151.0,0.0002136,2]
[340821865,1729878646684,-3000.0,0.0002136,2]
[340821867,1729878646696,-151.0,0.0002137,2]
[340821869,1729878646705,-651.816766,0.0002137,2]
[340821872,1729878646715,-651.816766,0.0002137,2]
[340821874,1729878646725,-225.614,0.0002137,2]
[340821876,1729878646735,-225.614,0.0002137,2]
[340821878,1729878646744,-151.0,0.0002137,2]
[340821880,1729878646754,-3000.0,0.0002137,2]
[340821882,1729878646764,-151.0,0.0002137,2]
[340821884,1729878646773,-153.584192,0.0002137,2]
[340821886,1729878646782,-153.584192,0.0002137,2]
[340821888,1729878646792,-3000.0,0.0002138,2]
[340821890,1729878646801,-151.0,0.0002139,2]
[340821892,1729878646811,-151.0,0.0002139,2]
[340821894,1729878646820,-208.2668,0.0002139,2]
[340821896,1729878646830,-276.84097,0.0002139,2]
[340821898,1729878646840,-151.0,0.0002139,2]
[340821900,1729878646849,-190.073972,0.0002139,2]
[340821902,1729878646870,-3000.0,0.0002139,2]
[340821904,1729878646879,-234.91838,0.0002139,2]
[340821906,1729878646889,-151.0,0.0002139,2]
[340821908,1729878646898,-454.017547,0.0002139,2]
[340821910,1729878646908,-454.017547,0.0002139,2]
[340821912,1729878646917,-651.816766,0.000214,2]
[340821914,1729878646926,-651.816766,0.000214,2]
[340821916,1729878646936,-225.614,0.000214,2]
[340821918,1729878646945,-225.614,0.000214,2]
[340821920,1729878646955,-151.0,0.000214,2]
[340821923,1729878646966,-3000.0,0.000214,2]
[340821925,1729878646975,-151.0,0.000214,2]
[340821927,1729878646984,-153.584192,0.000214,2]
[340821929,1729878646994,-153.584192,0.000214,2]
[340821931,1729878647003,-151.0,0.0002141,2]
[340821933,1729878647012,-233.97729,0.0002141,2]
[340821935,1729878647022,-191.373734,0.0002141,2]
[340821937,1729878647031,-3000.0,0.0002141,2]
[340821938,1729878647041,-3000.0,0.0002142,2]
[340821939,1729878647050,-3000.0,0.0002143,2]
[340821940,1729878647060,-3000.0,0.0002144,2]
[340821941,1729878647069,-1000.0,0.00021447,2]
[340821942,1729878647078,-1000.0,0.00021447,2]
[340821943,1729878647087,-1000.0,0.00021447,2]
[340821944,1729878647097,-1000.0,0.00021447,2]
[340821945,1729878647108,-1000.0,0.00021447,2]
[340821946,1729878647117,-500.0,0.00021447,2]
[340821947,1729878647128,-3000.0,0.0002145,2]
[340821949,1729878647138,-216.483461,0.0002146,2]
[340821952,1729878647147,-3000.0,0.0002146,2]
[340821954,1729878647156,-151.0,0.00021461,2]
[340821956,1729878647167,-151.0,0.00021461,2]
[340821958,1729878647177,-651.816766,0.00021461,2]
[340821959,1729878647186,-651.816766,0.00021461,2]
[340821960,1729878647196,-225.614,0.00021461,2]
[340821961,1729878647207,-225.614,0.00021461,2]
[340821979,1729878647216,-151.0,0.00021461,2]
[340821981,1729878647378,-151.0,0.00021461,2]
[340821983,1729878647388,-151.0,0.00021461,2]
[340821986,1729878647398,-153.584192,0.00021461,2]
[340821988,1729878647407,-153.584192,0.00021461,2]
[340821990,1729878647416,-454.017547,0.00021461,2]
[340821992,1729878647426,-454.017543,0.00021461,2]
[340821994,1729878647435,-3000.0,0.0002147,2]
[340821996,1729878647444,-151.0,0.00021471,2]
[340821998,1729878647454,-151.0,0.00021471,2]
[340822000,1729878647463,-151.0,0.00021471,2]
[340822002,1729878647473,-151.0,0.00021471,2]
[340822004,1729878647483,-151.0,0.00021471,2]
[340822006,1729878647494,-151.0,0.00021471,2]
[340822008,1729878647503,-651.816766,0.00021471,2]
[340822010,1729878647512,-651.816766,0.00021471,2]
[340822012,1729878647522,-225.614,0.00021471,2]
[340822014,1729878647531,-225.614,0.00021471,2]
[340822016,1729878647540,-151.0,0.00021471,2]
[340822018,1729878647549,-208.6139,0.00021471,2]
[340822020,1729878647559,-153.584192,0.00021471,2]
[340822022,1729878647568,-153.584192,0.00021471,2]
[340822024,1729878647578,-500.0,0.00021473,2]
[340822026,1729878647587,-500.0,0.00021473,2]
[340822028,1729878647597,-3171.655401,0.0002148,2]
[340822030,1729878647610,-55421.54423018,0.00021481,2]
[340822032,1729878647620,-151.0,0.00021481,2]
[340822034,1729878647629,-151.0,0.00021481,2]
[340822036,1729878647638,-151.0,0.00021481,2]
[340822039,1729878647648,-279.71721,0.00021481,2]
[340822041,1729878647657,-151.0,0.00021481,2]
[340822043,1729878647667,-2093.532386,0.00021481,2]
[340822045,1729878647676,-151.0,0.00021481,2]
[340822047,1729878647686,-651.816766,0.00021481,2]
[340822048,1729878647695,-651.816767,0.00021481,2]
[340822050,1729878647705,-225.614,0.00021481,2]
[340822052,1729878647715,-225.613992,0.00021481,2]
[340822054,1729878647724,-151.0,0.00021481,2]
[340822056,1729878647734,-153.584192,0.00021481,2]
[340822058,1729878647743,-153.584192,0.00021481,2]
[340822060,1729878647752,-151.0,0.00021531,2]
[340822062,1729878647762,-551.0,0.00021531,2]
[340822063,1729878647771,-286.192889,0.00021531,2]
[340822064,1729878647781,-500.0,0.00021531,2]
[340822065,1729878647790,-500.0,0.00021531,2]
[340822067,1729878647800,-500.0,0.00021531,2]
[340822069,1729878647809,-150.112233,0.000216,3]
[340822072,1729878647819,-2500.0,0.00021634,2]
[340822074,1729878647827,-2500.0,0.00021634,2]
[340822076,1729878647837,-150.112233,0.000217,2]
[340822078,1729878647846,-2500.0,0.00021701,2]
[340822080,1729878647857,-1000.0,0.00021747,2]
[340822082,1729878647866,-688.11305617,0.00021747,2]
[340822084,1729878647875,-1000.0,0.00021747,2]
[340822086,1729878647884,-150.112233,0.000218,3]
[340822088,1729878647893,-1532.31365007,0.00021847,2]
[340822090,1729878647903,-1500.0,0.00021847,2]
[340822092,1729878647912,-245.06699168,0.00021847,2]
[340822094,1729878647921,-150.112233,0.000219,4]
[340822096,1729878647930,-150.112233,0.000219,4]
[340822098,1729878647939,-2093.532386,0.00021907,2]
[340822100,1729878647948,-151.0,0.00021907,2]
[340822102,1729878647957,-5000.0,0.00021917,2]
[340822104,1729878647967,-5000.0,0.00021917,2]
[340822106,1729878647976,-5000.0,0.00021917,2]
[340822107,1729878647985,-713.60954553,0.00021917,2]
[340822109,1729878647994,-166.666666,0.00021918,2]
[340822111,1729878648003,-1656.0143588,0.00021918,2]
[340822113,1729878648013,-500.0,0.00021918,30]
[340822116,1729878648024,-597.87498701,0.00021918,30]
[340822118,1729878648034,-500.0,0.00021918,2]
[340822119,1729878648043,-500.0,0.00021918,2]
[340822121,1729878648053,-420.76410395,0.00021918,2]
[340822124,1729878648062,-500.0,0.00021918,2]
[340822126,1729878648071,-500.0,0.00021918,2]
[340822128,1729878648080,-500.0,0.00021918,2]
[340822129,1729878648089,-500.0,0.00021918,2]
[340822132,1729878648100,-500.0,0.00021918,2]
[340822134,1729878648111,-500.0,0.00021918,2]
[340822136,1729878648120,-450.0,0.00021918,2]
[340822138,1729878648130,-500.0,0.00021973,2]
[340822140,1729878648139,-151.0,0.0002199,7]
[340822142,1729878648148,-151.0,0.0002199,7]
[340822144,1729878648157,-151.0,0.0002199,7]
[340822146,1729878648166,-151.0,0.0002199,7]
[340822147,1729878648176,-2093.53239,0.0002199,7]
[340822148,1729878648185,-41127.31559058,0.00022,2]
[340822149,1729878648195,-4912.84823382,0.00022,3]
[340822151,1729878648620,-1000.0,0.00019,2]
[340822152,1729878648630,-1000.0,0.000195,2]
[340822153,1729878648640,-1000.0,0.0002,2]
[340822154,1729878648649,-4172.75907927,0.00022,3]
[340822155,1729878648743,-1401.95021517,0.00020174,2]
[340822156,1729878648752,-16308.30955163,0.00022,3]
[340822157,1729878648763,-151.0,0.00022,7]
[340822158,1729878648772,-151.0,0.00022,7]
[340822159,1729878648782,-151.0,0.00022,7]
[340822160,1729878648791,-151.0,0.00022,7]
[340822161,1729878648801,-200.0,0.00022,5]
[340822162,1729878648811,-1000.0,0.00022,2]
[340822163,1729878648820,-1000.0,0.00022,2]
[340822164,1729878648829,-1000.0,0.00022,2]
[340822165,1729878648839,-1000.0,0.00022,2]
[340822166,1729878648848,-869.2555012,0.00022,2]
[340822167,1729878648860,-200.0,0.00022,2]
[340822168,1729878648869,-662.54592653,0.00022,2]
[340822169,1729878648879,-1036.421829,0.00022,2]
[340822170,1729878648888,-517.26173517,0.0002201,16]
[340822171,1729878648898,-465.0109475,0.0002201,2]
[340822172,1729878648907,-1500.0,0.00022147,2]
[340822173,1729878648917,-2580.00078968,0.00022193,2]
[340822174,1729878648927,-3000.0,0.00022193,2]
[340822175,1729878648937,-1000.0,0.00022247,2]
[340822176,1729878648946,-3000.0,0.0002226,2]
[340822177,1729878648956,-151.0,0.00022315,7]
[340822178,1729878648965,-2000.0,0.00022315,2]
[340822179,1729878648975,-166.666666,0.00022431,2]
[340822180,1729878648985,-500.0,0.00022615,2]
[340822181,1729878648994,-1500.0,0.00022647,2]
[340822182,1729878649004,-774.736,0.0002277,2]
[340822183,1729878649013,-3500.0,0.00022786,2]
[340822184,1729878649023,-150.112233,0.000228,2]
[340822185,1729878649032,-1713.48218432,0.00022834,2]
[340822186,1729878649042,-3500.0,0.00022854,2]
[340822187,1729878649052,-1152.0,0.00022888,2]
[340822188,1729878649062,-400.16,0.000229,2]
[340822189,1729878649072,-151.0,0.00022901,2]
[340822190,1729878649082,-551.0,0.00022901,2]
[340822191,1729878649091,-500.0,0.00022901,2]
[340822192,1729878649100,-779.44857761,0.00022901,2]
[340822193,1729878649113,-500.0,0.00022901,2]
[340822194,1729878649123,-166.666666,0.00022944,2]
[340822195,1729878649132,-150.0,0.00023,5]
[340822196,1729878649142,-10000.0,0.00023,30]
[340822197,1729878649152,-150.79903799,0.00023,60]
[340822198,1729878649161,-200.0,0.00023,6]
[340822199,1729878649171,-159.0,0.00023,2]
[340822200,1729878649180,-167.0,0.00023,2]
[340822201,1729878649190,-200.0,0.00023,2]
[340822202,1729878649200,-2000.0,0.00023115,2]
[340822203,1729878649210,-167.0,0.00023288,2]
[340822204,1729878649220,-151.0,0.00023401,7]
[340822205,1729878649230,-151.0,0.00023401,7]
[340822206,1729878649240,-151.0,0.00023401,7]
[340822207,1729878649249,-151.0,0.00023401,7]
[340822208,1729878649259,-4000.0,0.00023411,2]
[340822209,1729878649269,-166.666666,0.00023456,2]
[340822210,1729878649279,-4000.0,0.00023478,2]
[340822211,1729878649289,-150.112234,0.000236,2]
[340822212,1729878649299,-2500.0,0.00023634,2]
[340822213,1729878649309,-150.112233,0.000237,3]
[340822214,1729878649319,-205.8268277,0.00023836,2]
[340822215,1729878649329,-150.112233,0.000239,5]
[340822216,1729878649339,-166.666666,0.00023969,2]
[340822217,1729878649348,-1000.0,0.00024,120]
[340822218,1729878649360,-200.0,0.00024,8]
[340822219,1729878649369,-4500.0,0.00024063,2]
[340822220,1729878649378,-4500.0,0.0002413,2]
[340822221,1729878649387,-167.0,0.00024164,2]
[340822222,1729878649397,-3000.0,0.00024193,2]
[340822223,1729878649407,-244.561033,0.00024271,2]
[340822224,1729878649416,-551.0,0.00024271,2]
[340822225,1729878649426,-500.0,0.00024271,2]
[340822226,1729878649436,-500.0,0.00024271,2]
[340822227,1729878649445,-166.666666,0.00024482,2]
[340822228,1729878649456,-150.112233,0.000246,3]
[340822229,1729878649466,-660.0,0.00024658,2]
[340822230,1729878649475,-200.0,0.00024658,2]
[340822231,1729878649485,-200.0,0.00024658,15]
[340822232,1729878649495,-380.0,0.00024658,2]
[340822233,1729878649506,-3816.42,0.000247,14]
[340822234,1729878649517,-1841.15,0.000247,14]
[340822235,1729878649527,-1042.68,0.000247,14]
[340822236,1729878649537,-788.98,0.000247,14]
[340822237,1729878649546,-5000.0,0.00024739,2]
[340822238,1729878649556,-1504.65223963,0.00024786,2]
[340822239,1729878649567,-4551.29933497,0.00024807,2]
[340822240,1729878649577,-151.0,0.0002499,7]
[340822241,1729878649587,-151.0,0.0002499,7]
[340822242,1729878649596,-151.0,0.0002499,7]
[340822243,1729878649608,-151.0,0.0002499,7]
[340822244,1729878649620,-69303.22066244,0.00025,2]
[340822245,1729878649861,-263.86369814,0.00025,2]
[340822246,1729878649873,-54569.67616435,0.00025,2]
[340822247,1729878649884,-1480.29052117,0.00025,2]
[340822248,1729878649894,-500.0,0.00025,30]
[340822249,1729878649903,-500.0,0.00025,30]
[340822250,1729878649913,-500.0,0.00025,30]
[340822251,1729878649923,-500.0,0.00025,30]
[340822252,1729878649933,-500.0,0.00025,30]
[340822253,1729878649942,-739.81417376,0.00025,30]
[340822254,1729878649951,-500.0,0.00025,30]
[340822255,1729878649960,-500.0,0.00025,30]
[340822256,1729878649970,-500.0,0.00025,30]
[340822257,1729878649979,-500.0,0.00025,30]
[340822258,1729878649988,-553.78284546,0.00025,30]
[340822259,1729878649997,-896.34248497,0.00025,30]
[340822260,1729878650006,-514.36541263,0.00025,30]
[340822261,1729878650015,-1000.0,0.00025,30]
[340822262,1729878650024,-1000.0,0.00025,30]
[340822263,1729878650034,-1000.0,0.00025,30]
[340822264,1729878650043,-1000.0,0.00025,30]
[340822265,1729878650053,-1000.0,0.00025,30]
[340822266,1729878650063,-1000.0,0.00025,30]
[340822267,1729878650072,-1000.0,0.00025,30]
[340822268,1729878650083,-500.0,0.00025,30]
[340822269,1729878650093,-1000.0,0.00025,30]
[340822270,1729878650102,-1000.0,0.00025,30]
[340822271,1729878650114,-500.0,0.00025,30]
[340822272,1729878650124,-1000.0,0.00025,30]
[340822273,1729878650134,-500.0,0.00025,30]
[340822274,1729878650144,-1000.0,0.00025,30]
[340822275,1729878650153,-500.0,0.00025,30]
[340822276,1729878650163,-1000.0,0.00025,30]
[340822277,1729878650172,-500.0,0.00025,30]
[340822278,1729878650182,-1724.69249401,0.00025,30]
[340822279,1729878650192,-500.0,0.00025,30]
[340822280,1729878650201,-500.0,0.00025,30]
[340822281,1729878650211,-754.27790575,0.00025,30]
[340822282,1729878650220,-500.0,0.00025,30]
[340822283,1729878650230,-859.59040198,0.00025,30]
[340822284,1729878650239,-813.34218839,0.00025,30]
[340822285,1729878650249,-3005.0,0.00025,2]
[340822286,1729878650258,-622.72943398,0.00025,120]
[340822287,1729878650267,-283.73656694,0.00025,120]
[340822288,1729878650277,-151.0,0.00025,7]
[340822289,1729878650287,-187.762652,0.00025,7]
[340822290,1729878650296,-151.0,0.00025,7]
[340822291,1729878650307,-500.0,0.00025,30]
[340822292,1729878650317,-500.0,0.00025,30]
[340822293,1729878650327,-500.0,0.00025,30]
[340822294,1729878650337,-500.0,0.00025,30]
[340822295,1729878650346,-500.0,0.00025,30]
[340822296,1729878650356,-500.0,0.00025,30]
[340822297,1729878650366,-500.0,0.00025,30]
[340822298,1729878650375,-500.0,0.00025,30]
[340822299,1729878650383,-500.0,0.00025,30]
[340822300,1729878650393,-500.0,0.00025,30]
[340822301,1729878650403,-500.0,0.00025,30]
[340822302,1729878650587,-700.0,0.00025,30]
[340822303,1729878650598,-500.0,0.00025,30]
[340822304,1729878650610,-700.0,0.00025,30]
[340822305,1729878650623,-700.0,0.00025,30]
[340822306,1729878650633,-500.0,0.00025,30]
[340822307,1729878650643,-700.0,0.00025,30]
[340822308,1729878650653,-700.0,0.00025,30]
[340822309,1729878650663,-700.0,0.00025,30]
[340822310,1729878650673,-500.0,0.00025,30]
[340822311,1729878650682,-700.0,0.00025,30]
[340822312,1729878650693,-500.0,0.00025,30]
[340822313,1729878650703,-700.0,0.00025,30]
[340822314,1729878650712,-500.0,0.00025,30]
[340822315,1729878650722,-700.0,0.00025,30]
[340822316,1729878650732,-501.08394533,0.00025,30]
[340822317,1729878650741,-500.0,0.00025,30]
[340822318,1729878650751,-1200.0,0.00025,30]
[340822319,1729878650761,-1200.0,0.00025,30]
[340822320,1729878650770,-700.0,0.00025,30]
[340822321,1729878650780,-1200.0,0.00025,30]
[340822322,1729878650792,-700.0,0.00025,30]
[340822323,1729878650803,-1200.0,0.00025,30]
[340822324,1729878650813,-1200.0,0.00025,30]
[340822325,1729878650822,-1200.0,0.00025,30]
[340822326,1729878650831,-1200.0,0.00025,30]
[340822327,1729878650841,-1200.0,0.00025,30]
[340822328,1729878650850,-1200.0,0.00025,30]
[340822329,1729878650862,-1200.0,0.00025,30]
[340822330,1729878650871,-1200.0,0.00025,30]
[340822331,1729878650881,-1200.0,0.00025,30]
[340822332,1729878650891,-1200.0,0.00025,30]
[340822333,1729878650900,-1200.0,0.00025,30]
[340822334,1729878650911,-1200.0,0.00025,30]
[340822335,1729878650922,-1400.0,0.00025,30]
[340822336,1729878650933,-1400.0,0.00025,30]
[340822337,1729878650943,-1400.0,0.00025,30]
[340822338,1729878650953,-1400.0,0.00025,30]
[340822339,1729878650963,-1400.0,0.00025,30]
[340822340,1729878650973,-1400.0,0.00025,30]
[340822341,1729878650983,-1400.0,0.00025,30]
[340822342,1729878650992,-1400.0,0.00025,30]
[340822343,1729878651002,-1400.0,0.00025,30]
[340822344,1729878651012,-1400.0,0.00025,30]
[340822345,1729878651021,-1400.0,0.00025,30]
[340822346,1729878651031,-1400.0,0.00025,30]
[340822347,1729878651041,-2700.0,0.00025,30]
[340822348,1729878651051,-200.0,0.00025,9]
[340822349,1729878651060,-1613.0,0.00025024,2]
[340822350,1729878651070,-168.0,0.00025373,2]
[340822351,1729878651080,-2546.57271535,0.00025439,2]
[340822352,1729878651089,-150.112233,0.000255,10]
[340822353,1729878651099,-551.0,0.0002564,2]
[340822354,1729878651110,-520.54188619,0.0002564,2]
[340822355,1729878651120,-500.0,0.0002564,2]
[340822356,1729878651129,-256.70626942,0.00025768,2]
[340822357,1729878651139,-151.0,0.0002589,7]
[340822358,1729878651149,-151.0,0.0002589,7]
[340822359,1729878651159,-47903.999999,0.000259,2]
[340822360,1729878651168,-2500.0,0.00026,2]
[340822361,1729878651178,-1000.5,0.00026,31]
[340822362,1729878651188,-1000.5,0.00026,31]
[340822363,1729878651197,-1000.5,0.00026,31]
[340822364,1729878651207,-1000.5,0.00026,31]
[340822365,1729878651217,-1000.5,0.00026,31]
[340822366,1729878651226,-1000.5,0.00026,31]
[340822367,1729878651236,-295.3,0.00026,31]
[340822368,1729878651245,-1781.55192389,0.00026,2]
[340822369,1729878651256,-200.0,0.00026,11]
[340822370,1729878651266,-500.0,0.00026,30]
[340822371,1729878651276,-500.0,0.00026,30]
[340822372,1729878651285,-500.0,0.00026,30]
[340822373,1729878651294,-500.0,0.00026,30]
[340822374,1729878651304,-500.0,0.00026,30]
[340822375,1729878651314,-500.0,0.00026,30]
[340822376,1729878651323,-500.0,0.00026,30]
[340822377,1729878651333,-500.0,0.00026,30]
[340822378,1729878651343,-500.0,0.00026,30]
[340822379,1729878651352,-500.0,0.00026,30]
[340822380,1729878651364,-500.0,0.00026,30]
[340822381,1729878651374,-700.0,0.00026,30]
[340822382,1729878651383,-500.0,0.00026,30]
[340822383,1729878651393,-1000.0,0.00026,30]
[340822384,1729878651402,-1000.0,0.00026,30]
[340822385,1729878651412,-1000.0,0.00026,30]
[340822386,1729878651422,-1000.0,0.00026,30]
[340822387,1729878651432,-1000.0,0.00026,30]
[340822388,1729878651443,-1000.0,0.00026,30]
[340822389,1729878651454,-1000.0,0.00026,30]
[340822390,1729878651464,-1000.0,0.00026,30]
[340822391,1729878651474,-1000.0,0.00026,30]
[340822392,1729878651484,-928.133646,0.00026,30]
[340822393,1729878651493,-1000.0,0.00026,30]
[340822394,1729878651503,-500.0,0.00026,30]
[340822395,1729878651512,-1000.0,0.00026,30]
[340822396,1729878651522,-1000.0,0.00026,30]
[340822397,1729878651531,-1000.0,0.00026,30]
[340822398,1729878651540,-500.0,0.00026,30]
[340822399,1729878651549,-1000.0,0.00026,30]
[340822400,1729878651559,-500.0,0.00026,30]
[340822401,1729878651569,-336.98783346,0.00026,30]
[340822402,1729878651578,-500.0,0.00026,30]
[340822403,1729878651588,-843.44293096,0.00026,30]
[340822404,1729878651598,-500.0,0.00026,30]
[340822405,1729878651609,-287.09017967,0.00026,30]
[340822406,1729878651622,-500.0,0.00026,30]
[340822407,1729878651632,-500.0,0.00026,30]
[340822408,1729878651643,-500.0,0.00026,30]
[340822409,1729878651654,-500.0,0.00026,30]
[340822410,1729878651663,-858.11115957,0.00026,30]
[340822411,1729878651673,-500.0,0.00026,30]
[340822412,1729878651682,-500.0,0.00026,30]
[340822413,1729878651692,-500.0,0.00026,30]
[340822414,1729878651702,-500.0,0.00026,30]
[340822415,1729878651712,-336.98783346,0.00026,30]
[340822416,1729878651722,-210.86987528,0.00026,30]
[340822417,1729878651732,-500.0,0.00026,30]
[340822418,1729878651741,-500.0,0.00026,30]
[340822419,1729878651751,-500.0,0.00026,30]
[340822420,1729878651760,-500.0,0.00026,30]
[340822421,1729878651769,-500.0,0.00026,30]
[340822422,1729878651779,-500.0,0.00026,30]
[340822423,1729878651788,-501.45161035,0.00026,30]
[340822424,1729878651798,-700.0,0.00026,30]
[340822425,1729878651808,-500.0,0.00026,30]